bitfinex/quotes_BTCUSD_20250410
["timestamp","ask_amount","ask_price","bid_price","bid_amount"]
[1744290233905,0.245064,81612.0,81608.0,0.12055382]
[1744290234226,0.245066,81611.0,81608.0,0.12055382]
[1744290234518,0.245063,81612.0,81609.0,0.245069]
[1744290234825,0.245063,81612.0,81610.0,0.12055382]
[1744290235056,0.245063,81612.0,81605.0,0.012254]
[1744290235057,0.245077,81607.0,81600.0,0.245095]
[1744290235262,0.012255,81599.0,81595.0,0.0482]
[1744290235465,0.257326,81609.0,81601.0,0.012254]
[1744290235667,0.257328,81608.0,81602.0,0.36564582]
[1744290235836,0.4,81613.0,81612.0,0.245062]
[1744290236038,0.4,81613.0,81612.0,0.36561582]
[1744290236246,0.245057,81614.0,81612.0,0.12055382]
[1744290236848,0.245058,81613.0,81612.0,0.12055382]
[1744290237599,0.25731,81613.0,81612.0,0.12055382]
[1744290237926,0.012254,81602.0,81593.0,0.245118]
[1744290238129,0.257349,81601.0,81597.0,0.245106]
[1744290238356,0.245098,81600.0,81598.0,0.12055382]
[1744290238557,0.245095,81601.0,81598.0,0.36565582]
[1744290238771,0.012253,81610.0,81598.0,0.13280882]
[1744290238975,0.245032,81622.0,81615.0,0.245052]
[1744290239188,0.245045,81618.0,81615.0,0.36560582]
[1744290239353,0.012252,81617.0,81615.0,0.12055382]
[1744290239558,0.24517661,81616.0,81615.0,0.12055382]
[1744290239993,0.012254,81606.0,81598.0,0.012255]
[1744290240216,0.245074,81608.0,81604.0,0.245085]
[1744290240370,0.245074,81608.0,81598.0,0.012255]
[1744290240371,0.257334,81606.0,81605.0,0.12055382]
[1744290240575,0.00012761,81616.0,81588.0,0.245131]
[1744290240576,0.012255,81593.0,81588.0,0.245131]
[1744290240775,0.257374,81593.0,81589.0,0.36568182]
[1744290240999,0.245111,81596.0,81591.0,0.25738]
[1744290241203,0.245111,81596.0,81592.0,0.12055382]
[1744290241399,0.245109,81597.0,81594.0,0.245116]
[1744290241602,0.245109,81597.0,81595.0,0.12055382]
[1744290242071,0.24511,81596.0,81595.0,0.12055382]
[1744290242470,0.257399,81586.0,81582.0,0.24515]
[1744290242668,0.257403,81584.0,81583.0,0.12055382]
[1744290242873,0.257403,81584.0,81571.0,0.012259]
[1744290242874,0.257412,81581.0,81575.0,0.245172]
[1744290243146,0.257412,81581.0,81572.0,0.245179]
[1744290243268,0.257412,81581.0,81570.0,0.245186]
[1744290243473,0.257412,81581.0,81574.0,0.245173]
[1744290243673,0.257412,81581.0,81580.0,0.2001274]
[1744290248273,0.657412,81581.0,81580.0,0.2001274]
[1744290248699,1.11796582,81581.0,81580.0,0.2001274]
[1744290249184,0.997412,81581.0,81580.0,0.2001274]
[1744290251784,0.012256,81591.0,81583.0,0.012257]
[1744290251985,0.257362,81597.0,81584.0,0.12055382]
[1744290252187,0.4144,81605.0,81590.0,0.245126]
[1744290252188,0.4,81596.0,81590.0,0.245126]
[1744290252388,0.4,81596.0,81591.0,0.12055382]
[1744290252389,0.012255,81594.0,81591.0,0.12055382]
[1744290252599,0.245119,81593.0,81591.0,0.12055382]
[1744290252959,0.012256,81590.0,81584.0,0.245145]
[1744290253259,0.245113,81595.0,81591.0,0.245124]
[1744290253459,0.012255,81595.0,81590.0,0.245127]
[1744290253663,0.352254,81604.0,81593.0,0.245117]
[1744290253867,0.245104,81598.0,81594.0,0.36566982]
[1744290254074,0.245107,81597.0,81594.0,0.12055382]
[1744290254330,0.012256,81591.0,81582.0,0.012257]
[1744290254475,0.245132,81589.0,81586.0,0.245138]
[1744290254672,0.245128,81590.0,81578.0,0.060858]
[1744290254673,0.245134,81588.0,81587.0,0.12055382]
[1744290254880,0.25739,81588.0,81587.0,0.12055382]
[1744290255629,0.245134,81588.0,81587.0,0.12055382]
[1744290256197,0.257382,81591.0,81587.0,0.36568782]
[1744290256405,0.245062,81612.0,81606.0,0.012254]
[1744290256601,0.012252,81619.0,81605.0,0.012254]
[1744290256602,0.012252,81615.0,81605.0,0.012254]
[1744290256804,0.412252,81614.0,81606.0,0.257331]
[1744290257052,0.245059,81613.0,81610.0,0.245065]
[1744290257256,0.245063,81612.0,81610.0,0.245065]
[1744290257455,0.245063,81612.0,81608.0,0.245072]
[1744290257636,0.245065,81611.0,81609.0,0.12055382]
[1744290257982,0.012254,81605.0,81594.0,0.0453]
[1744290258132,0.012254,81605.0,81602.0,0.245091]
[1744290258133,0.257337,81605.0,81602.0,0.245091]
[1744290258335,0.257337,81605.0,81603.0,0.12055382]
[1744290258536,0.245097,81601.0,81594.0,0.0453]
[1744290258762,0.012254,81601.0,81597.0,0.245106]
[1744290258928,0.245092,81602.0,81598.0,0.36565482]
[1744290259129,0.245092,81602.0,81591.0,0.012256]
[1744290259130,0.245137,81587.0,81586.0,0.0486]
[1744290259340,0.245137,81587.0,81586.0,0.12068122]
[1744290259628,0.245117,81594.0,81590.0,0.245127]
[1744290259829,0.012255,81594.0,81590.0,0.12055382]
[1744290259978,0.257361,81598.0,81592.0,0.245122]
[1744290260299,0.257367,81596.0,81593.0,0.245117]
[1744290260445,0.245107,81597.0,81593.0,0.12055382]
[1744290260647,0.012255,81597.0,81593.0,0.12055382]
[1744290260858,0.245085,81605.0,81578.0,0.0486]
[1744290260859,0.012256,81590.0,81586.0,0.0001274]
[1744290261054,0.257393,81587.0,81586.0,0.0001274]
[1744290264470,0.657393,81587.0,81586.0,0.0001274]
[1744290268444,0.245129,81590.0,81586.0,0.12068122]
[1744290268624,0.245136,81588.0,81586.0,0.12068122]
[1744290268996,0.257393,81587.0,81586.0,0.0001274]
[1744290270364,0.245128,81590.0,81586.0,0.2452644]
[1744290270666,0.012256,81589.0,81586.0,0.0001274]
[1744290271297,0.645128,81591.0,81586.0,0.0001274]
[1744290271298,0.4,81591.0,81586.0,0.0001274]
[1744290271500,0.257393,81587.0,81586.0,0.0001274]
[1744290272335,0.245134,81588.0,81586.0,0.0001274]
[1744290272518,0.257393,81587.0,81586.0,0.0001274]
[1744290274913,0.657393,81587.0,81586.0,0.0001274]
[1744290278733,1.21404682,81587.0,81586.0,0.0001274]
[1744290278931,1.33447941,81587.0,81586.0,4e-07]
[1744290279143,0.597412,81581.0,81580.0,4e-07]
[1744290279346,0.71796582,81581.0,81580.0,4e-07]
[1744290279548,0.83839841,81581.0,81580.0,4e-07]
[1744290279732,0.997412,81581.0,81580.0,4e-07]
[1744290279936,1.198332,81581.0,81580.0,4e-07]
[1744290281038,0.257406,81584.0,81580.0,4e-07]
[1744290281039,0.05,81612.0,81580.0,4e-07]
[1744290281189,0.01195193,81619.0,81581.0,0.245155]
[1744290281190,0.012256,81588.0,81581.0,0.245155]
[1744290281391,0.245155,81581.0,81580.0,4e-07]
[1744290281553,0.657412,81581.0,81580.0,4e-07]
[1744290281756,0.4,81581.0,81580.0,4e-07]
[1744290282256,0.4,81581.0,81580.0,0.2451584]
[1744290282681,0.39932589,81581.0,81580.0,0.2451584]
[1744290283099,0.39932589,81581.0,81580.0,4e-07]
[1744290285007,0.39932589,81581.0,81580.0,0.2451584]
[1744290285408,0.39932589,81581.0,81580.0,0.36571222]
[1744290286207,0.245134,81588.0,81585.0,0.245142]
[1744290286876,0.4,81587.0,81585.0,0.245142]
[1744290287330,0.4,81587.0,81586.0,0.24514]
[1744290287734,0.00012756,81590.0,81589.0,0.257387]
[1744290287853,0.00012756,81590.0,81589.0,0.37794082]
[1744290288872,0.00012756,81590.0,81589.0,0.47564082]
[1744290293760,0.00012756,81590.0,81589.0,0.12055382]
[1744290294097,0.00012756,81590.0,81589.0,0.245131]
[1744290294979,0.245131,81589.0,81585.0,0.245142]
[1744290295120,0.245131,81589.0,81584.0,0.245146]
[1744290295121,0.245131,81589.0,81586.0,0.36569282]
[1744290295322,0.00012756,81590.0,81586.0,0.12055382]
[1744290295527,0.00012756,81590.0,81589.0,0.245131]
[1744290295726,0.00012756,81590.0,81587.0,0.245136]
[1744290295991,0.00012756,81590.0,81589.0,0.245131]
[1744290296973,0.00012756,81590.0,81589.0,0.37794082]
[1744290297174,0.00012756,81590.0,81589.0,0.47374082]
[1744290299411,0.00012756,81590.0,81589.0,0.36568482]
[1744290299678,0.24525556,81590.0,81589.0,0.12055382]
[1744290299836,0.00012756,81590.0,81589.0,0.12055382]
[1744290300046,0.25751156,81590.0,81589.0,0.12055382]
[1744290300865,0.245135,81588.0,81584.0,0.245144]
[1744290301068,0.245135,81588.0,81585.0,0.12055382]
[1744290301069,0.245138,81587.0,81585.0,0.12055382]
[1744290301275,0.257397,81586.0,81585.0,0.12055382]
[1744290301448,0.245143,81585.0,81580.0,0.2451554]
[1744290301648,0.245143,81585.0,81582.0,0.245151]
[1744290301875,0.245143,81585.0,81582.0,0.36570482]
[1744290302208,0.245146,81584.0,81582.0,0.12055382]
[1744290302489,0.012257,81586.0,81582.0,0.12055382]
[1744290302490,0.257406,81583.0,81582.0,0.12055382]
[1744290302892,0.257412,81581.0,81580.0,4e-07]
[1744290304711,0.597412,81581.0,81580.0,4e-07]
[1744290304916,0.997412,81581.0,81580.0,4e-07]
[1744290307252,0.4,81581.0,81580.0,4e-07]
[1744290307440,0.4,81581.0,81580.0,0.2574154]
[1744290307599,0.012256,81588.0,81580.0,0.12055422]
[1744290307805,0.245147,81584.0,81580.0,0.36571022]
[1744290308011,0.245147,81584.0,81580.0,0.12055422]
[1744290308012,0.245153,81582.0,81580.0,0.12055422]
[1744290308211,0.012257,81583.0,81580.0,0.12055422]
[1744290308472,0.257406,81583.0,81580.0,0.12055422]
[1744290308687,0.245152,81582.0,81580.0,0.12055422]
[1744290311019,0.012255,81594.0,81589.0,0.245131]
[1744290311217,0.245121,81593.0,81589.0,0.12055382]
[1744290311418,0.245126,81591.0,81589.0,0.12055382]
[1744290311856,0.245119,81593.0,81589.0,0.36568482]
[1744290312173,0.25751156,81590.0,81589.0,0.12055382]
[1744290312474,0.25751156,81590.0,81581.0,0.257409]
[1744290312475,0.245137,81588.0,81583.0,0.245148]
[1744290312678,0.257412,81581.0,81580.0,4e-07]
[1744290312830,0.012256,81588.0,81580.0,4e-07]
[1744290312831,0.24526156,81590.0,81582.0,0.245151]
[1744290313066,0.257391,81588.0,81583.0,0.36570082]
[1744290313239,0.00012756,81590.0,81589.0,0.257387]
[1744290313442,0.00012756,81590.0,81589.0,0.36568482]
[1744290313667,0.245152,81582.0,81576.0,0.245169]
[1744290313842,0.257412,81581.0,81563.0,0.0455]
[1744290314040,0.257412,81581.0,81564.0,0.245203]
[1744290314225,0.257412,81581.0,81568.0,0.257451]
[1744290314428,0.257412,81581.0,81573.0,0.245177]
[1744290315163,0.257412,81581.0,81573.0,0.245178]
[1744290315575,0.257412,81581.0,81570.0,0.245182]
[1744290315980,0.257412,81581.0,81568.0,0.245191]
[1744290316190,0.257412,81581.0,81566.0,0.12734225]
[1744290316567,0.597412,81581.0,81566.0,0.12734225]
[1744290316992,0.597412,81581.0,81570.0,0.245185]
[1744290317287,0.4,81581.0,81575.0,0.012258]
[1744290317492,0.412257,81581.0,81577.0,0.245164]
[1744290317803,0.412257,81581.0,81573.0,0.047]
[1744290317804,0.657412,81581.0,81574.0,0.245175]
[1744290318832,0.657412,81581.0,81575.0,0.245171]
[1744290319483,0.657412,81581.0,81566.0,0.0459]
[1744290319910,0.657412,81581.0,81567.0,0.245195]
[1744290320086,0.657412,81581.0,81566.0,0.0459]
[1744290320087,0.657412,81581.0,81557.0,0.0480687]
[1744290320285,0.657412,81581.0,81562.0,0.24521]
[1744290320485,0.657412,81581.0,81563.0,0.245207]
[1744290320486,0.257412,81581.0,81563.0,0.245207]
[1744290320955,0.657412,81581.0,81563.0,0.245207]
[1744290321154,0.657412,81581.0,81562.0,0.245212]
[1744290321332,0.657412,81581.0,81561.0,0.249215]
[1744290321529,0.657412,81581.0,81562.0,0.245209]
[1744290321954,0.657412,81581.0,81561.0,0.249215]
[1744290322153,0.657412,81581.0,81562.0,0.245211]
[1744290322491,0.657412,81581.0,81563.0,0.245207]
[1744290322673,0.657412,81581.0,81565.0,0.245202]
[1744290323034,0.657412,81581.0,81564.0,0.245204]
[1744290323252,0.657412,81581.0,81561.0,0.004]
[1744290323454,0.657412,81581.0,81562.0,0.245209]
[1744290323659,0.657412,81581.0,81563.0,0.245209]
[1744290324179,0.657412,81581.0,81564.0,0.245205]
[1744290325525,0.657412,81581.0,81563.0,0.245209]
[1744290325673,0.657412,81581.0,81564.0,0.01226]
[1744290325874,0.657412,81581.0,81561.0,0.01626]
[1744290326074,0.657412,81581.0,81562.0,0.01226]
[1744290326275,0.657412,81581.0,81563.0,0.01226]
[1744290326575,0.657412,81581.0,81561.0,0.261472]
[1744290326736,0.657412,81581.0,81561.0,0.249213]
[1744290326991,0.657412,81581.0,81562.0,0.245211]
[1744290327190,0.657412,81581.0,81561.0,0.249213]
[1744290327191,0.657412,81581.0,81561.0,0.004]
[1744290327636,0.997412,81581.0,81561.0,0.004]
[1744290328217,1.11784459,81581.0,81561.0,0.004]
[1744290328425,0.997412,81581.0,81561.0,0.004]
[1744290329058,0.997452,81581.0,81561.0,0.004]
[1744290329426,0.997452,81581.0,81562.0,0.245209]
[1744290329596,0.997452,81581.0,81563.0,0.01471199]
[1744290329793,0.997452,81581.0,81569.0,0.24519]
[1744290330235,0.597452,81581.0,81569.0,0.24519]
[1744290330549,0.597452,81581.0,81561.0,0.004]
[1744290331748,0.597452,81581.0,81580.0,4e-07]
[1744290332814,0.997452,81581.0,81580.0,4e-07]
[1744290333209,0.657452,81581.0,81580.0,4e-07]
[1744290336776,0.257452,81581.0,81580.0,4e-07]
[1744290337160,0.657452,81581.0,81580.0,4e-07]
[1744290338989,1.01287652,81581.0,81580.0,4e-07]
[1744290339129,1.26915693,81581.0,81580.0,4e-07]
[1744290339317,1.69817362,81581.0,81580.0,4e-07]
[1744290339921,1.66820825,81581.0,81580.0,4e-07]
[1744290340122,1.40018258,81581.0,81580.0,4e-07]
[1744290340329,1.41213853,81581.0,81580.0,4e-07]
[1744290340665,1.41231915,81581.0,81580.0,4e-07]
[1744290341291,1.4504328,81581.0,81580.0,4e-07]
[1744290341735,1.41231915,81581.0,81580.0,4e-07]
[1744290341935,0.81490715,81581.0,81580.0,0.2451584]
[1744290342178,1.07207833,81581.0,81580.0,4e-07]
[1744290342384,0.67192783,81581.0,81580.0,4e-07]
[1744290342554,0.67189773,81581.0,81580.0,4e-07]
[1744290342756,0.67195792,81581.0,81580.0,4e-07]
[1744290342957,0.67192783,81581.0,81580.0,4e-07]
[1744290343161,0.67189773,81581.0,81580.0,4e-07]
[1744290343780,0.67195792,81581.0,81580.0,4e-07]
[1744290343982,0.67189773,81581.0,81580.0,4e-07]
[1744290344862,0.25749773,81581.0,81580.0,4e-07]
[1744290346081,0.59749773,81581.0,81580.0,4e-07]
[1744290346485,1.03573741,81581.0,81580.0,4e-07]
[1744290346684,0.99761812,81581.0,81580.0,4e-07]
[1744290346895,0.99767831,81581.0,81580.0,4e-07]
[1744290347426,1.03579361,81581.0,81580.0,4e-07]
[1744290347834,1.1562262,81581.0,81580.0,4e-07]
[1744290348749,1.03579361,81581.0,81580.0,4e-07]
[1744290348947,0.99767831,81581.0,81580.0,4e-07]
[1744290350943,0.00026631,81581.0,81580.0,0.12055422]
[1744290351148,0.00010019,81581.0,81580.0,0.12055422]
[1744290351354,4e-05,81581.0,81580.0,0.12055422]
[1744290352258,0.012297,81581.0,81580.0,0.12055422]
[1744290353202,0.012297,81581.0,81580.0,4e-07]
[1744290353894,0.257452,81581.0,81580.0,4e-07]
[1744290354383,0.25749773,81581.0,81580.0,4e-07]
[1744290355006,0.65749773,81581.0,81580.0,4e-07]
[1744290355634,0.99749773,81581.0,81580.0,4e-07]
[1744290355856,1.23848414,81581.0,81580.0,4e-07]
[1744290356027,1.27660505,81581.0,81580.0,4e-07]
[1744290356202,1.27678564,81581.0,81580.0,4e-07]
[1744290357128,1.27711678,81581.0,81580.0,4e-07]
[1744290357328,1.27729744,81581.0,81580.0,4e-07]
[1744290358161,1.75143829,81581.0,81580.0,4e-07]
[1744290358768,3.01363829,81581.0,81580.0,4e-07]
[1744290359066,3.0139846,81581.0,81580.0,4e-07]
[1744290359839,2.99944375,81581.0,81580.0,4e-07]
[1744290360264,3.19792375,81581.0,81580.0,4e-07]
[1744290360461,3.19762259,81581.0,81580.0,4e-07]
[1744290360939,3.34143448,81581.0,81580.0,4e-07]
[1744290361261,3.26133448,81581.0,81580.0,4e-07]
[1744290361628,0.597472,81562.0,81561.0,0.004]
[1744290361831,0.597472,81562.0,81557.0,0.0001687]
[1744290361832,0.597485,81558.0,81557.0,0.0001687]
[1744290362233,0.99805776,81558.0,81557.0,0.0473687]
[1744290362634,0.99784698,81558.0,81557.0,0.0473687]
[1744290362836,0.99799753,81558.0,81557.0,0.0001687]
[1744290363058,0.99784698,81558.0,81557.0,0.0001687]
[1744290363668,0.40036198,81558.0,81557.0,0.2576567]
[1744290363898,0.00036198,81558.0,81557.0,0.42741052]
[1744290364096,9.104e-05,81558.0,81557.0,0.47701052]
[1744290364334,0.25746,81566.0,81565.0,0.0477]
[1744290364857,0.00010604,81566.0,81565.0,0.292903]
[1744290365049,7.594e-05,81566.0,81565.0,0.292903]
[1744290365183,0.25746,81566.0,81565.0,0.0477]
[1744290365604,0.25753594,81566.0,81565.0,0.0477]
[1744290365861,0.25759614,81566.0,81565.0,0.0477]
[1744290366416,0.25753594,81566.0,81565.0,0.0477]
[1744290366818,7.594e-05,81566.0,81565.0,0.0477]
[1744290367120,0.25762624,81566.0,81565.0,0.0477]
[1744290367313,0.25750585,81566.0,81565.0,0.0477]
[1744290367521,0.25756604,81566.0,81565.0,0.0477]
[1744290367918,0.25753594,81566.0,81565.0,0.0477]
[1744290368383,0.25762624,81566.0,81565.0,0.0477]
[1744290368591,0.257485,81558.0,81557.0,0.0493687]
[1744290368888,0.25762119,81558.0,81557.0,0.16992252]
[1744290369107,0.257485,81558.0,81557.0,0.21792252]
[1744290369408,0.257485,81558.0,81557.0,0.0481687]
[1744290369612,0.257485,81558.0,81557.0,0.0001687]
[1744290369889,0.2807115,81558.0,81557.0,0.0001687]
[1744290371570,0.28056096,81558.0,81557.0,0.0001687]
[1744290371768,0.25786204,81558.0,81557.0,0.0001687]
[1744290372326,0.26984103,81558.0,81557.0,0.0001687]
[1744290372456,0.2699464,81558.0,81557.0,0.0001687]
[1744290373098,0.69278496,81558.0,81557.0,0.0001687]
[1744290374982,1.03278496,81558.0,81557.0,0.0001687]
[1744290375597,1.03299575,81558.0,81557.0,0.0001687]
[1744290377525,1.15354957,81558.0,81557.0,0.0001687]
[1744290378861,1.03299575,81558.0,81557.0,0.0001687]
[1744290379747,1.15354957,81558.0,81557.0,0.0001687]
[1744290380313,1.15354957,81558.0,81547.0,0.0001687]
[1744290380314,0.012262,81551.0,81547.0,8e-07]
[1744290380517,0.597516,81548.0,81547.0,8e-07]
[1744290380637,0.71806982,81548.0,81547.0,0.00012846]
[1744290380848,0.99872132,81548.0,81547.0,0.00012846]
[1744290381071,0.42404388,81548.0,81547.0,0.00012846]
[1744290381294,0.42356196,81548.0,81547.0,0.00012846]
[1744290381493,0.68107796,81548.0,81547.0,0.00012846]
[1744290381667,0.68086715,81548.0,81547.0,0.00012846]
[1744290383490,1.14129974,81548.0,81547.0,0.00012846]
[1744290383696,1.14163101,81548.0,81547.0,0.00012846]
[1744290383896,1.11879245,81548.0,81547.0,0.00012846]
[1744290384322,1.31651245,81548.0,81547.0,0.00012846]
[1744290384534,1.31678355,81548.0,81547.0,0.00012846]
[1744290385565,1.19635096,81548.0,81547.0,0.00012846]
[1744290385990,0.99863096,81548.0,81547.0,0.00012846]
[1744290386165,1.19639096,81548.0,81547.0,0.00012846]
[1744290389848,0.99863096,81548.0,81547.0,0.00012846]
[1744290394331,1.11918478,81548.0,81547.0,4.6e-07]
[1744290394531,1.23961737,81548.0,81547.0,4.6e-07]
[1744290394752,1.23961737,81548.0,81531.0,0.004]
[1744290394753,0.012265,81532.0,81531.0,1.6e-07]
[1744290394933,0.597567,81532.0,81531.0,1.6e-07]
[1744290395081,0.86324705,81532.0,81531.0,1.6e-07]
[1744290395279,1.26324705,81532.0,81531.0,1.6e-07]
[1744290395687,1.46100705,81532.0,81531.0,1.6e-07]
[1744290397432,1.34057446,81532.0,81531.0,1.6e-07]
[1744290398661,0.257637,81510.0,81508.0,0.04790586]
[1744290398861,0.02284028,81509.0,81508.0,0.04790586]
[1744290399066,0.03641931,81509.0,81508.0,0.04790586]
[1744290399266,0.01357903,81509.0,81508.0,0.04790586]
[1744290399858,0.01357903,81509.0,81508.0,0.04833085]
[1744290400077,0.03641298,81509.0,81508.0,0.04833085]
[1744290400687,0.03641298,81509.0,81508.0,0.00042499]
[1744290401731,0.03695547,81509.0,81508.0,0.00042499]
[1744290402229,0.04948985,81509.0,81508.0,0.00042499]
[1744290402877,1.14040884,81509.0,81508.0,0.00042499]
[1744290403003,1.03486085,81509.0,81508.0,0.00042499]
[1744290406640,0.42468747,81509.0,81508.0,0.00042499]
[1744290406807,0.00185352,81509.0,81508.0,0.42442081]
[1744290407036,0.00054249,81509.0,81508.0,0.42442081]
[1744290407320,0.4,81512.0,81509.0,0.24537]
[1744290407524,0.4,81512.0,81508.0,0.17904681]
[1744290407525,0.4,81512.0,81511.0,0.245365]
[1744290407725,0.245359,81513.0,81510.0,0.12055382]
[1744290408048,0.02281821,81512.0,81510.0,0.36592182]
[1744290408543,0.02281821,81512.0,81511.0,0.305233]
[1744290408726,0.02281821,81512.0,81511.0,0.42578682]
[1744290409069,0.02281821,81517.0,81512.0,0.012268]
[1744290409270,0.26816621,81517.0,81513.0,0.12055382]
[1744290409468,0.26816621,81517.0,81513.0,0.36591082]
[1744290409710,0.02281821,81517.0,81513.0,0.37817782]
[1744290409914,0.03508521,81518.0,81513.0,0.36591082]
[1744290410118,0.245348,81517.0,81514.0,0.245354]
[1744290410267,0.02281821,81516.0,81514.0,0.12055382]
[1744290410468,0.26816921,81516.0,81514.0,0.12055382]
[1744290410893,0.02281821,81515.0,81514.0,0.36590982]
[1744290411585,0.245352,81516.0,81514.0,0.12055382]
[1744290411787,0.245353,81515.0,81514.0,0.12055382]
[1744290411932,0.26817121,81515.0,81514.0,0.12055382]
[1744290412133,0.25763,81512.0,81511.0,0.0476]
[1744290412473,0.245371,81509.0,81508.0,0.04622499]
[1744290412812,0.257639,81509.0,81508.0,0.00042499]
[1744290413187,0.28048466,81509.0,81508.0,0.00042499]
[1744290413593,0.02284566,81509.0,81508.0,0.00042499]
[1744290413797,0.02284566,81509.0,81508.0,0.36635281]
[1744290413994,0.02284566,81509.0,81508.0,0.37862081]
[1744290414193,0.02284566,81515.0,81514.0,0.257623]
[1744290414376,0.02284566,81515.0,81514.0,0.12055382]
[1744290414565,0.26819866,81515.0,81514.0,0.12055382]
[1744290414760,4e-05,81516.0,81514.0,0.12055382]
[1744290414989,0.012267,81514.0,81508.0,0.29309799]
[1744290415167,0.012267,81514.0,81509.0,0.36592282]
[1744290415392,0.012267,81514.0,81509.0,0.12055382]
[1744290415963,0.245365,81513.0,81509.0,0.36592482]
[1744290416277,0.012268,81509.0,81508.0,0.04772499]
[1744290416613,0.25848301,81509.0,81508.0,0.04772499]
[1744290416840,0.25905549,81509.0,81508.0,0.00042499]
[1744290417143,0.28190666,81509.0,81508.0,0.00042499]
[1744290417794,0.29333304,81509.0,81508.0,0.00042499]
[1744290418401,0.69333304,81509.0,81508.0,0.00042499]
[1744290418807,0.69392079,81509.0,81508.0,0.00042499]
[1744290420324,0.81435338,81509.0,81508.0,0.00042499]
[1744290420630,1.15435338,81509.0,81508.0,0.00042499]
[1744290421071,1.03392079,81509.0,81508.0,0.00042499]
[1744290421245,0.69392079,81509.0,81508.0,0.00042499]
[1744290426089,0.28165279,81509.0,81508.0,0.00042499]
[1744290426338,0.03628179,81509.0,81508.0,0.00042499]
[1744290426517,0.29392079,81509.0,81508.0,0.00042499]
[1744290427293,0.27106962,81509.0,81508.0,0.00042499]
[1744290431121,0.67106962,81509.0,81508.0,0.00042499]
[1744290431336,0.69395075,81509.0,81508.0,0.00042499]
[1744290433442,0.29395075,81509.0,81508.0,0.00042499]
[1744290433648,0.03631175,81509.0,81508.0,0.47182081]
[1744290433873,0.03430751,81509.0,81508.0,0.47182081]
[1744290434088,0.01142638,81509.0,81508.0,0.47182081]
[1744290434666,0.02288483,81515.0,81514.0,0.257622]
[1744290434868,0.02288483,81515.0,81514.0,0.42607582]
[1744290435064,8.3e-07,81515.0,81514.0,0.79297721]
[1744290435270,0.12796284,81528.0,81527.0,0.353782]
[1744290435471,0.16639396,81536.0,81535.0,0.257557]
[1744290435678,0.16639396,81536.0,81535.0,0.37811082]
[1744290435881,0.16639396,81536.0,81535.0,0.12055382]
[1744290436098,0.17865796,81536.0,81535.0,0.12055382]
[1744290436810,0.16732016,81536.0,81535.0,0.12055382]
[1744290437051,0.257571,81531.0,81527.0,0.29332]
[1744290437250,0.00070842,81530.0,81528.0,0.12055382]
[1744290437449,0.012266,81526.0,81519.0,0.0488]
[1744290437659,0.012264,81537.0,81525.0,0.012266]
[1744290437833,0.24616709,81535.0,81532.0,0.2453]
[1744290438065,0.00087409,81535.0,81534.0,0.057964]
[1744290438373,7.604e-05,81535.0,81534.0,0.22761782]
[1744290438512,0.257511,81550.0,81535.0,0.257557]
[1744290438707,0.245252,81549.0,81535.0,0.37811082]
[1744290439171,0.60263157,81548.0,81535.0,0.37811082]
[1744290439396,0.00012745,81536.0,81535.0,0.37811082]
[1744290439929,0.00012745,81536.0,81535.0,0.12055382]
[1744290440312,0.00012745,81536.0,81535.0,0.13281782]
[1744290440661,0.00044435,81536.0,81535.0,0.13281782]
[1744290440883,0.00012745,81536.0,81535.0,0.37811082]
[1744290441054,0.24576446,81536.0,81535.0,0.12055382]
[1744290441253,0.00047446,81536.0,81535.0,0.12055382]
[1744290441456,0.00047446,81536.0,81535.0,0.37811082]
[1744290441667,0.00012745,81536.0,81535.0,0.37811082]
[1744290441868,0.012261,81553.0,81535.0,0.37811082]
[1744290441869,6.5e-07,81542.0,81535.0,0.77925167]
[1744290442074,6.5e-07,81542.0,81541.0,0.43923267]
[1744290442301,6.5e-07,81542.0,81541.0,0.77923267]
[1744290442601,0.12790726,81568.0,81566.0,0.25746]
[1744290442776,0.00046484,81567.0,81566.0,0.37801382]
[1744290444747,0.00046484,81567.0,81566.0,0.38726422]
[1744290448276,0.00046484,81567.0,81566.0,0.40180507]
[1744290448645,0.23797104,81590.0,81586.0,0.245137]
[1744290449021,0.245131,81589.0,81584.0,0.245144]
[1744290449257,0.245131,81589.0,81585.0,0.245142]
[1744290449451,0.23797104,81590.0,81585.0,0.245142]
[1744290449657,0.0003372,81591.0,81589.0,0.245128]
[1744290449870,0.0003372,81591.0,81590.0,0.12055382]
[1744290450672,0.0003372,81591.0,81590.0,0.13280982]
[1744290451169,0.0003372,81591.0,81590.0,0.12055382]
[1744290451823,0.0003372,81591.0,81590.0,0.13280982]
[1744290452849,0.0003372,81591.0,81590.0,0.37793782]
[1744290454138,0.0003372,81591.0,81590.0,0.38702049]
[1744290455283,0.0003372,81591.0,81590.0,0.40156134]
[1744290455696,0.0003372,81591.0,81590.0,0.44866134]
[1744290455947,0.0003372,81591.0,81590.0,0.78866134]
[1744290456954,0.0003372,81598.0,81597.0,0.245107]
[1744290457218,0.0003372,81598.0,81597.0,0.82685667]
[1744290457219,0.00046481,81598.0,81597.0,0.82685667]
[1744290457418,6.1e-07,81598.0,81597.0,0.82685667]
[1744290457539,0.0003372,81612.0,81597.0,0.82685667]
[1744290457540,0.0003372,81612.0,81611.0,0.304718]
[1744290457743,0.0003372,81612.0,81611.0,0.63609267]
[1744290457963,0.0003374,81624.0,81611.0,0.63609267]
[1744290457964,0.0003374,81624.0,81618.0,0.257295]
[1744290458163,0.0003374,81624.0,81620.0,0.61182885]
[1744290458494,0.0003374,81624.0,81620.0,0.73238267]
[1744290459397,0.0003374,81624.0,81620.0,0.57408182]
[1744290459739,0.0003374,81624.0,81620.0,0.36559082]
[1744290460279,0.0003374,81624.0,81620.0,0.37784182]
[1744290460658,0.0125884,81624.0,81620.0,0.12055382]
[1744290460982,0.2453684,81623.0,81620.0,0.12055382]
[1744290461162,0.012588,81621.0,81616.0,0.245049]
[1744290461357,0.012588,81621.0,81617.0,0.12055382]
[1744290461607,0.000337,81621.0,81618.0,0.245042]
[1744290461834,0.245372,81621.0,81619.0,0.12055382]
[1744290462056,0.245372,81621.0,81613.0,0.245058]
[1744290462057,0.24505,81616.0,81613.0,0.245057]
[1744290462264,0.012254,81606.0,81596.0,0.0475]
[1744290462473,0.012254,81606.0,81600.0,0.36564982]
[1744290462686,0.245087,81604.0,81601.0,0.245094]
[1744290462889,0.257335,81606.0,81602.0,0.24509]